fUST/lending_fUST_20240807
["ID","MTS","AMOUNT","RATE_DAILY","PERIOD"]
[334398083,1723029085219,-2102.23,0.0003452,14]
[334398084,1723029085228,-1724.83,0.0003452,14]
[334398085,1723029085238,-786.56,0.0003452,14]
[334398086,1723029085249,-1026.47,0.0003452,14]
[334398087,1723029085259,-2410.79,0.0003452,14]
[334398088,1723029085268,-500.0,0.0003452,14]
[334398089,1723029085277,-1027.92,0.0003452,14]
[334398090,1723029085287,-572.28,0.0003452,14]
[334398091,1723029085297,-500.0,0.0003452,14]
[334398092,1723029085307,-827.4,0.0003452,14]
[334398093,1723029085317,-500.0,0.0003452,14]
[334398094,1723029085326,-500.0,0.0003452,14]
[334398095,1723029085337,-500.0,0.0003452,14]
[334398096,1723029085348,-1638.94,0.0003452,14]
[334398097,1723029085362,-500.0,0.0003452,14]
[334398098,1723029085372,-2976.45,0.0003452,14]
[334398099,1723029085382,-500.0,0.0003452,14]
[334398100,1723029085391,-728.06,0.0003452,14]
[334398101,1723029085400,-500.0,0.0003452,14]
[334398102,1723029085409,-1275.04,0.0003452,14]
[334398103,1723029085418,-500.0,0.0003452,14]
[334398104,1723029085428,-1187.93,0.0003452,14]
[334398105,1723029085438,-645.93,0.0003452,14]
[334398106,1723029085454,-1020.1,0.0003452,14]
[334398107,1723029085463,-500.0,0.0003452,14]
[334398108,1723029085474,-500.0,0.0003452,14]
[334398109,1723029085483,-201.76604338,0.0003452,14]
[334398110,1723029085493,-581.74,0.0003452,14]
[334398111,1723029085505,-500.0,0.0003452,14]
[334398112,1723029085516,-720.42,0.0003452,14]
[334398113,1723029085526,-645.82939306,0.0003452,14]
[334398114,1723029085536,-923.4,0.0003452,14]
[334398115,1723029085547,-500.0,0.0003452,14]
[334398116,1723029085557,-548.72,0.0003452,14]
[334398117,1723029085566,-534.66,0.0003452,14]
[334398118,1723029085579,-671.94,0.0003452,14]
[334398119,1723029085588,-2664.41,0.0003452,14]
[334398120,1723029085600,-500.0,0.0003452,14]
[334398121,1723029085611,-1512.23,0.0003452,14]
[334398122,1723029085621,-1144.37,0.0003452,14]
[334398123,1723029085761,-500.0,0.0003452,14]
[334398124,1723029085772,-518.05,0.0003452,14]
[334398125,1723029085781,-1021.34,0.0003452,14]
[334398126,1723029085792,-500.0,0.0003452,14]
[334398127,1723029085802,-2148.85,0.0003452,14]
[334398128,1723029085812,-500.0,0.0003452,14]
[334398129,1723029085822,-500.0,0.0003452,14]
[334398130,1723029085831,-500.0,0.0003452,14]
[334398131,1723029085841,-1093.31,0.0003452,14]
[334398132,1723029085851,-2807.44,0.0003452,14]
[334398133,1723029085861,-500.0,0.0003452,14]
[334398134,1723029085871,-500.0,0.0003452,14]
[334398135,1723029085880,-500.0,0.0003452,14]
[334398136,1723029085889,-500.0,0.0003452,14]
[334398137,1723029085899,-500.0,0.0003452,14]
[334398138,1723029085908,-647.5,0.0003452,14]
[334398139,1723029085917,-972.5,0.0003452,14]
[334398140,1723029085927,-2896.75,0.0003452,14]
[334398141,1723029085936,-836.81,0.0003452,14]
[334398142,1723029085946,-621.33,0.0003452,14]
[334398143,1723029085955,-500.0,0.0003452,14]
[334398144,1723029085965,-500.0,0.0003452,14]
[334398145,1723029085977,-877.3,0.0003452,14]
[334398146,1723029085988,-500.0,0.0003452,14]
[334398147,1723029086004,-646.55,0.0003452,14]
[334398148,1723029086016,-519.26,0.0003452,14]
[334398149,1723029086026,-811.6,0.0003452,14]
[334398150,1723029086036,-3787.31,0.0003452,14]
[334398151,1723029086046,-676.38,0.0003452,14]
[334398152,1723029086058,-500.0,0.0003452,14]
[334398153,1723029086069,-1713.3,0.0003452,14]
[334398154,1723029086081,-500.0,0.0003452,14]
[334398155,1723029086092,-710.82,0.0003452,14]
[334398156,1723029086105,-3403.09,0.0003452,14]
[334398157,1723029086115,-500.0,0.0003452,14]
[334398158,1723029086125,-8008.66,0.0003452,14]
[334398159,1723029086136,-1695.73,0.0003452,14]
[334398160,1723029086147,-500.0,0.0003452,14]
[334398161,1723029086158,-2652.65,0.0003452,14]
[334398162,1723029086169,-500.0,0.0003452,14]
[334398163,1723029086180,-676.41,0.0003452,14]
[334398164,1723029086191,-4726.18,0.0003452,14]
[334398165,1723029086202,-631.77,0.0003452,14]
[334398166,1723029086212,-524.76,0.0003452,14]
[334398167,1723029086223,-765.56,0.0003452,14]
[334398168,1723029086232,-500.0,0.0003452,14]
[334398169,1723029086241,-500.0,0.0003452,14]
[334398170,1723029086251,-596.92,0.0003452,14]
[334398171,1723029086260,-2772.04,0.0003452,14]
[334398172,1723029086269,-872.47,0.0003452,14]
[334398173,1723029086279,-500.0,0.0003452,14]
[334398174,1723029086288,-500.0,0.0003452,14]
[334398175,1723029086298,-2850.24,0.0003452,14]
[334398176,1723029086308,-2368.38,0.0003452,14]
[334398177,1723029086318,-918.69,0.0003452,14]
[334398178,1723029086329,-1182.98,0.0003452,14]
[334398179,1723029086340,-500.0,0.0003452,14]
[334398180,1723029086350,-787.24,0.0003452,14]
[334398181,1723029086359,-500.0,0.0003452,14]
[334398182,1723029086368,-500.0,0.0003452,14]
[334398183,1723029086378,-500.0,0.0003452,14]
[334398184,1723029086389,-748.79,0.0003452,14]
[334398185,1723029086400,-1732.44,0.0003452,14]
[334398186,1723029086410,-1373.61,0.0003452,14]
[334398187,1723029086422,-500.0,0.0003452,14]
[334398188,1723029086433,-1008.03,0.0003452,14]
[334398189,1723029086446,-705.51,0.0003452,14]
[334398190,1723029086457,-500.0,0.0003452,14]
[334398191,1723029086467,-5624.94,0.0003452,14]
[334398192,1723029086478,-4673.31,0.0003452,14]
[334398193,1723029086489,-2102.82,0.0003452,14]
[334398194,1723029086499,-683.38,0.0003452,14]
[334398195,1723029086509,-500.0,0.0003452,14]
[334398196,1723029086521,-500.0,0.0003452,14]
[334398197,1723029086532,-500.0,0.0003452,14]
[334398198,1723029086542,-500.0,0.0003452,14]
[334398199,1723029086552,-1201.25,0.0003452,14]
[334398200,1723029086563,-5296.6,0.0003452,14]
[334398201,1723029086574,-500.0,0.0003452,14]
[334398202,1723029086584,-500.0,0.0003452,14]
[334398203,1723029086593,-754.45,0.0003452,14]
[334398204,1723029086607,-6120.77,0.0003452,14]
[334398205,1723029086618,-4115.44,0.0003452,14]
[334398206,1723029086628,-500.0,0.0003452,14]
[334398207,1723029086638,-2356.09,0.0003452,14]
[334398208,1723029086648,-1016.46,0.0003452,14]
[334398209,1723029086659,-1373.79,0.0003452,14]
[334398210,1723029086669,-500.0,0.0003452,14]
[334398211,1723029086679,-27586.24,0.0003452,14]
[334398212,1723029086689,-641.2,0.0003452,14]
[334398213,1723029086699,-551.11,0.0003452,14]
[334398214,1723029086710,-2059.66,0.0003452,14]
[334398215,1723029086721,-884.77,0.0003452,14]
[334398216,1723029086730,-7553.97,0.0003452,14]
[334398217,1723029086741,-1858.24,0.0003452,14]
[334398218,1723029086751,-6001.15,0.0003452,14]
[334398219,1723029086761,-1904.11,0.0003452,14]
[334398220,1723029086770,-3288.86,0.0003452,14]
[334398221,1723029086779,-577.95,0.0003452,14]
[334398222,1723029086789,-1446.23,0.0003452,14]
[334398223,1723029086798,-4804.12,0.0003452,14]
[334398224,1723029086808,-509.19,0.0003452,14]
[334398225,1723029086817,-873.14,0.0003452,14]
[334398226,1723029086826,-3091.7,0.0003452,14]
[334398227,1723029086835,-743.63,0.0003452,14]
[334398228,1723029086844,-1370.13,0.0003452,14]
[334398229,1723029086856,-18095.21,0.0003452,14]
[334398230,1723029086865,-500.0,0.0003452,14]
[334398231,1723029086874,-1609.93,0.0003452,14]
[334398232,1723029086884,-2388.37,0.0003452,14]
[334398233,1723029086893,-803.5,0.0003452,14]
[334398234,1723029086903,-4013.41,0.0003452,14]
[334398235,1723029086913,-602.9,0.0003452,14]
[334398236,1723029086922,-2364.63,0.0003452,14]
[334398237,1723029086931,-629.6,0.0003452,14]
[334398238,1723029086941,-1184.06,0.0003452,14]
[334398239,1723029086950,-500.0,0.0003452,14]
[334398240,1723029086960,-1150.86,0.0003452,14]
[334398241,1723029086969,-602.76,0.0003452,14]
[334398242,1723029086979,-20279.89,0.0003452,14]
[334398243,1723029086989,-500.0,0.0003452,14]
[334398244,1723029087001,-1372.29,0.0003452,14]
[334398245,1723029087011,-500.0,0.0003452,14]
[334398246,1723029087020,-11638.4,0.0003452,14]
[334398247,1723029087029,-500.0,0.0003452,14]
[334398248,1723029087040,-500.0,0.0003452,14]
[334398249,1723029087050,-500.0,0.0003452,14]
[334398250,1723029087059,-1433.62,0.0003452,14]
[334398251,1723029087069,-500.0,0.0003452,14]
[334398252,1723029087079,-761.0,0.0003452,14]
[334398253,1723029087089,-500.0,0.0003452,14]
[334398254,1723029087099,-1750.38,0.0003452,14]
[334398255,1723029087109,-512.68,0.0003452,14]
[334398256,1723029087118,-746.77,0.0003452,14]
[334398257,1723029087127,-11428.84,0.0003452,14]
[334398258,1723029087136,-1433.26,0.0003452,14]
[334398259,1723029087145,-2496.12,0.0003452,14]
[334398260,1723029087154,-2975.06,0.0003452,14]
[334398261,1723029087164,-2356.96,0.0003452,14]
[334398262,1723029087173,-3825.94,0.0003452,14]
[334398263,1723029087182,-1460.03,0.0003452,14]
[334398264,1723029087192,-500.0,0.0003452,14]
[334398265,1723029087201,-1424.73,0.0003452,14]
[334398266,1723029087211,-10865.29,0.0003452,14]
[334398267,1723029087220,-2785.33,0.0003452,14]
[334398268,1723029087230,-500.0,0.0003452,14]
[334398269,1723029087239,-500.0,0.0003452,14]
[334398270,1723029087249,-536.47,0.0003452,14]
[334398271,1723029087258,-973.08,0.0003452,14]
[334398272,1723029087267,-500.0,0.0003452,14]
[334398273,1723029087276,-795.32,0.0003452,14]
[334398274,1723029087286,-6834.28,0.0003452,14]
[334398275,1723029087295,-1637.95,0.0003452,14]
[334398276,1723029087305,-500.0,0.0003452,14]
[334398277,1723029087315,-500.0,0.0003452,14]
[334398278,1723029087324,-1190.28,0.0003452,14]
[334398279,1723029087333,-5590.89,0.0003452,14]
[334398280,1723029087342,-502.77,0.0003452,14]
[334398281,1723029087354,-2520.26,0.0003452,14]
[334398282,1723029087364,-1612.65,0.0003452,14]
[334398283,1723029087374,-1790.94,0.0003452,14]
[334398284,1723029087384,-500.0,0.0003452,14]
[334398285,1723029087393,-500.0,0.0003452,14]
[334398286,1723029087403,-1565.92,0.0003452,14]
[334398287,1723029087412,-739.25,0.0003452,14]
[334398288,1723029087422,-500.0,0.0003452,14]
[334398289,1723029087431,-728.33,0.0003452,14]
[334398290,1723029087442,-709.69,0.0003452,14]
[334398291,1723029087451,-656.7,0.0003452,14]
[334398292,1723029087460,-2157.08,0.0003452,14]
[334398293,1723029087470,-500.0,0.0003452,14]
[334398294,1723029087479,-2547.19,0.0003452,14]
[334398295,1723029087489,-1757.34,0.0003452,14]
[334398296,1723029087499,-1214.45,0.0003452,14]
[334398297,1723029087508,-1138.49,0.0003452,14]
[334398298,1723029087518,-943.14,0.0003452,14]
[334398299,1723029087528,-814.59,0.0003452,14]
[334398300,1723029087538,-500.0,0.0003452,14]
[334398301,1723029087548,-1713.75,0.0003452,14]
[334398302,1723029087558,-500.0,0.0003452,14]
[334398303,1723029087569,-849.27,0.0003452,14]
[334398304,1723029087579,-1062650.8205788,0.00034574,60]
[334398305,1723029087589,-166.79,0.000346,30]
[334398306,1723029087600,-2222.93172395,0.00034602,2]
[334398307,1723029087610,-157.838299,0.00034703,2]
[334398308,1723029087620,-817.517819,0.00034713,2]
[334398309,1723029087629,-769.01714,0.00034713,2]
[334398310,1723029087639,-162.456419,0.00034713,2]
[334398311,1723029087649,-176.508552,0.00034713,2]
[334398312,1723029087660,-719.23681,0.00034713,2]
[334398313,1723029087672,-756.969634,0.00034713,2]
[334398314,1723029087682,-2000.0,0.00034792,14]
[334398315,1723029087692,-1053.34,0.00034794,14]
[334398316,1723029087703,-1009.34,0.00034794,14]
[334398317,1723029087715,-2387.52,0.00034794,14]
[334398318,1723029087724,-500.0,0.00034794,14]
[334398319,1723029087734,-500.0,0.00034794,14]
[334398320,1723029087744,-540.78,0.00034794,14]
[334398321,1723029087753,-558.5,0.00034794,14]
[334398322,1723029087763,-2183.56,0.00034794,14]
[334398323,1723029087773,-635.93,0.00034794,14]
[334398324,1723029087782,-614.31,0.00034794,14]
[334398325,1723029087792,-500.0,0.00034794,14]
[334398326,1723029087801,-1090.48,0.00034794,14]
[334398327,1723029087811,-500.0,0.00034794,14]
[334398328,1723029087820,-983.41,0.00034794,14]
[334398329,1723029087831,-500.0,0.00034794,14]
[334398330,1723029087841,-1237.41,0.00034794,14]
[334398331,1723029087852,-500.0,0.00034794,14]
[334398332,1723029087862,-901.85,0.00034794,14]
[334398333,1723029087873,-500.0,0.00034794,14]
[334398334,1723029087883,-500.0,0.00034794,14]
[334398335,1723029087893,-705.74,0.00034794,14]
[334398336,1723029087903,-867.95,0.00034794,14]
[334398337,1723029087912,-890.32,0.00034794,14]
[334398338,1723029087923,-500.0,0.00034794,14]
[334398339,1723029087934,-500.0,0.00034794,14]
[334398340,1723029087945,-358.44116168,0.00034794,14]
[334398341,1723029087956,-641.8,0.00034794,14]
[334398342,1723029087967,-500.0,0.00034794,14]
[334398343,1723029087977,-663.8,0.00034794,14]
[334398344,1723029088110,-500.0,0.00034794,14]
[334398345,1723029088121,-500.0,0.00034794,14]
[334398346,1723029088132,-500.0,0.00034794,14]
[334398347,1723029088142,-500.0,0.00034794,14]
[334398348,1723029088153,-500.0,0.00034794,14]
[334398349,1723029088163,-500.0,0.00034794,14]
[334398350,1723029088173,-500.0,0.00034794,14]
[334398351,1723029088183,-610.03,0.00034794,14]
[334398352,1723029088194,-500.0,0.00034794,14]
[334398353,1723029088203,-500.0,0.00034794,14]
[334398354,1723029088212,-1049.44,0.00034794,14]
[334398355,1723029088222,-658.92,0.00034794,14]
[334398356,1723029088231,-634.91,0.00034794,14]
[334398357,1723029088240,-500.0,0.00034794,14]
[334398358,1723029088250,-618.32,0.00034794,14]
[334398359,1723029088259,-841.16,0.00034794,14]
[334398360,1723029088269,-500.0,0.00034794,14]
[334398361,1723029088278,-508.16,0.00034794,14]
[334398362,1723029088287,-543.25,0.00034794,14]
[334398363,1723029088297,-2103.08,0.00034794,14]
[334398364,1723029088307,-500.0,0.00034794,14]
[334398365,1723029088317,-229.62501269,0.00034794,14]
[334398366,1723029088326,-1135.85,0.00034794,14]
[334398367,1723029088336,-500.0,0.00034794,14]
[334398368,1723029088346,-500.0,0.00034794,14]
[334398369,1723029088358,-726.44,0.00034794,14]
[334398370,1723029088368,-606.85,0.00034794,14]
[334398371,1723029088378,-665.91,0.00034794,14]
[334398372,1723029088387,-782.36,0.00034794,14]
[334398373,1723029088396,-500.0,0.00034794,14]
[334398374,1723029088406,-653.76,0.00034794,14]
[334398375,1723029088419,-500.0,0.00034794,14]
[334398376,1723029088430,-500.0,0.00034794,14]
[334398377,1723029088439,-572.65,0.00034794,14]
[334398378,1723029088449,-552.06,0.00034794,14]
[334398379,1723029088459,-723.92,0.00034794,14]
[334398380,1723029088469,-2180.22,0.00034794,14]
[334398381,1723029088478,-531.95,0.00034794,14]
[334398382,1723029088488,-500.0,0.00034794,14]
[334398383,1723029088498,-738.14,0.00034794,14]
[334398384,1723029088508,-500.0,0.00034794,14]
[334398385,1723029088517,-500.0,0.00034794,14]
[334398386,1723029088527,-500.0,0.00034794,14]
[334398387,1723029088537,-500.0,0.00034794,14]
[334398388,1723029088547,-500.0,0.00034794,14]
[334398389,1723029088557,-500.0,0.00034794,14]
[334398390,1723029088566,-561.59,0.00034794,14]
[334398391,1723029088577,-166.53598955,0.00034794,14]
[334398392,1723029088586,-526.38,0.00034794,14]
[334398393,1723029088595,-500.0,0.00034794,14]
[334398394,1723029088609,-655.78,0.00034794,14]
[334398395,1723029088618,-500.0,0.00034794,14]
[334398396,1723029088628,-997.18,0.00034794,14]
[334398397,1723029088637,-1854.37,0.00034794,14]
[334398398,1723029088646,-500.0,0.00034794,14]
[334398399,1723029088655,-200.0,0.00034794,7]
[334398400,1723029088664,-1754.86,0.00034794,14]
[334398401,1723029088674,-500.0,0.00034794,14]
[334398402,1723029088683,-637.98,0.00034794,14]
[334398403,1723029088693,-2280.75,0.00034794,14]
[334398404,1723029088703,-524.01,0.00034794,14]
[334398405,1723029088712,-580.82,0.00034794,14]
[334398406,1723029088722,-500.0,0.00034794,14]
[334398407,1723029088731,-500.0,0.00034794,14]
[334398408,1723029088741,-500.0,0.00034794,14]
[334398409,1723029088751,-528.8,0.00034794,14]
[334398410,1723029088761,-500.0,0.00034794,14]
[334398411,1723029088770,-1498.25,0.00034794,14]
[334398412,1723029088779,-693.96,0.00034794,14]
[334398413,1723029088789,-500.0,0.00034794,14]
[334398414,1723029088798,-500.0,0.00034794,14]
[334398415,1723029088807,-627.54,0.00034794,14]
[334398416,1723029088816,-3342.3,0.00034794,14]
[334398417,1723029088825,-531.99,0.00034794,14]
[334398418,1723029088835,-500.0,0.00034794,14]
[334398419,1723029088844,-1236.8,0.00034794,14]
[334398420,1723029088859,-500.0,0.00034794,14]
[334398421,1723029088874,-728.37,0.00034794,14]
[334398422,1723029088884,-1161.27,0.00034794,14]
[334398423,1723029088894,-500.0,0.00034794,14]
[334398424,1723029088904,-938.86,0.00034794,14]
[334398425,1723029088913,-3031.19,0.00034794,14]
[334398426,1723029088923,-500.0,0.00034794,14]
[334398427,1723029088932,-500.0,0.00034794,14]
[334398428,1723029088942,-1919.23,0.00034794,14]
[334398429,1723029088953,-1225.39,0.00034794,14]
[334398430,1723029088962,-884.22,0.00034794,14]
[334398431,1723029088972,-500.0,0.00034794,14]
[334398432,1723029088982,-1075.22,0.00034794,14]
[334398433,1723029088991,-500.0,0.00034794,14]
[334398434,1723029089004,-799.55,0.00034794,14]
[334398435,1723029089015,-665.15,0.00034794,14]
[334398436,1723029089024,-578.83,0.00034794,14]
[334398437,1723029089035,-500.0,0.00034794,14]
[334398438,1723029089045,-500.0,0.00034794,14]
[334398439,1723029089055,-500.0,0.00034794,14]
[334398440,1723029089065,-1407.14,0.00034794,14]
[334398441,1723029089076,-538.06,0.00034794,14]
[334398442,1723029089086,-500.0,0.00034794,14]
[334398443,1723029089095,-1237.71,0.00034794,14]
[334398444,1723029089111,-3398.02,0.00034794,14]
[334398445,1723029089120,-2584.23,0.00034794,14]
[334398446,1723029089130,-798.6,0.00034794,14]
[334398447,1723029089141,-604.27,0.00034794,14]
[334398448,1723029089151,-500.0,0.00034794,14]
[334398449,1723029089161,-500.0,0.00034794,14]
[334398450,1723029089171,-500.0,0.00034794,2]
[334398451,1723029089180,-500.0,0.00034794,14]
[334398452,1723029089189,-500.0,0.00034794,14]
[334398453,1723029089199,-500.0,0.00034794,14]
[334398454,1723029089208,-1456.08,0.00034794,14]
[334398455,1723029089218,-968.66,0.00034794,14]
[334398456,1723029089228,-500.0,0.00034794,14]
[334398457,1723029089238,-1104.57,0.00034794,14]
[334398458,1723029089248,-785.13,0.00034794,14]
[334398459,1723029089257,-1000.35,0.00034794,14]
[334398460,1723029089267,-678.62,0.00034794,14]
[334398461,1723029089276,-2102.23,0.00034794,14]
[334398462,1723029089286,-1724.83,0.00034794,14]
[334398463,1723029089295,-786.56,0.00034794,14]
[334398464,1723029089304,-1026.47,0.00034794,14]
[334398465,1723029089314,-2410.79,0.00034794,14]
[334398466,1723029089323,-500.0,0.00034794,14]
[334398467,1723029089334,-1027.92,0.00034794,14]
[334398468,1723029089343,-572.28,0.00034794,14]
[334398469,1723029089356,-500.0,0.00034794,14]
[334398470,1723029089366,-827.4,0.00034794,14]
[334398471,1723029089377,-172.14566361,0.00034794,14]
[334398472,1723029089388,-570.15214202,0.00034794,14]
[334398473,1723029089397,-500.0,0.00034794,14]
[334398474,1723029089407,-1638.94,0.00034794,14]
[334398475,1723029089417,-500.0,0.00034794,14]
[334398476,1723029089428,-2976.45,0.00034794,14]
[334398477,1723029089437,-500.0,0.00034794,14]
[334398478,1723029089450,-728.06,0.00034794,14]
[334398479,1723029089459,-500.0,0.00034794,14]
[334398480,1723029089469,-1275.04,0.00034794,14]
[334398481,1723029089479,-500.0,0.00034794,14]
[334398482,1723029089489,-1187.93,0.00034794,14]
[334398483,1723029089501,-645.93,0.00034794,14]
[334398484,1723029089512,-1020.1,0.00034794,14]
[334398485,1723029089523,-500.0,0.00034794,14]
[334398486,1723029089533,-500.0,0.00034794,14]
[334398487,1723029089545,-581.74,0.00034794,14]
[334398488,1723029089556,-500.0,0.00034794,14]
[334398489,1723029089565,-720.42,0.00034794,14]
[334398490,1723029089574,-923.4,0.00034794,14]
[334398491,1723029089583,-500.0,0.00034794,14]
[334398492,1723029089592,-548.72,0.00034794,14]
[334398493,1723029089607,-534.66,0.00034794,14]
[334398494,1723029089619,-671.94,0.00034794,14]
[334398495,1723029089629,-2664.41,0.00034794,14]
[334398496,1723029089638,-483.61824805,0.00034794,14]
[334398497,1723029089647,-1512.23,0.00034794,14]
[334398498,1723029089657,-1144.37,0.00034794,14]
[334398499,1723029089667,-479.37542732,0.00034794,14]
[334398500,1723029089679,-518.05,0.00034794,14]
[334398501,1723029089691,-1021.34,0.00034794,14]
[334398502,1723029089704,-500.0,0.00034794,14]
[334398503,1723029089713,-2148.85,0.00034794,14]
[334398504,1723029089723,-500.0,0.00034794,14]
[334398505,1723029089732,-1093.31,0.00034794,14]
[334398506,1723029089743,-560.43013562,0.00034794,14]
[334398507,1723029089752,-500.0,0.00034794,14]
[334398508,1723029089763,-2807.44,0.00034794,14]
[334398509,1723029089773,-369.61689859,0.00034794,14]
[334398510,1723029089782,-500.0,0.00034794,14]
[334398511,1723029089791,-500.0,0.00034794,14]
[334398512,1723029089801,-500.0,0.00034794,14]
[334398513,1723029089810,-500.0,0.00034794,14]
[334398514,1723029089819,-647.5,0.00034794,14]
[334398515,1723029089829,-972.5,0.00034794,14]
[334398516,1723029089838,-2896.75,0.00034794,14]
[334398517,1723029089848,-836.81,0.00034794,14]
[334398518,1723029089857,-621.33,0.00034794,14]
[334398519,1723029089867,-174.21441393,0.00034794,14]
[334398520,1723029089876,-500.0,0.00034794,14]
[334398521,1723029089886,-877.3,0.00034794,14]
[334398522,1723029089896,-500.0,0.00034794,14]
[334398523,1723029089905,-646.55,0.00034794,14]
[334398524,1723029089914,-519.26,0.00034794,14]
[334398525,1723029089924,-811.6,0.00034794,14]
[334398526,1723029089933,-3787.31,0.00034794,14]
[334398527,1723029089943,-676.38,0.00034794,14]
[334398528,1723029089953,-280.96117922,0.00034794,14]
[334398529,1723029089962,-1713.3,0.00034794,14]
[334398530,1723029089971,-500.0,0.00034794,14]
[334398531,1723029089981,-710.82,0.00034794,14]
[334398532,1723029089991,-3403.09,0.00034794,14]
[334398533,1723029090004,-500.0,0.00034794,14]
[334398534,1723029090014,-8008.66,0.00034794,14]
[334398535,1723029090024,-1695.73,0.00034794,14]
[334398536,1723029090034,-500.0,0.00034794,14]
[334398537,1723029090043,-2652.65,0.00034794,14]
[334398538,1723029090053,-500.0,0.00034794,14]
[334398539,1723029090063,-676.41,0.00034794,14]
[334398540,1723029090075,-4726.18,0.00034794,14]
[334398541,1723029090086,-631.77,0.00034794,14]
[334398542,1723029090096,-524.76,0.00034794,14]
[334398543,1723029090109,-765.56,0.00034794,14]
[334398544,1723029090119,-500.0,0.00034794,14]
[334398545,1723029090128,-500.0,0.00034794,14]
[334398546,1723029090137,-596.92,0.00034794,14]
[334398547,1723029090257,-2772.04,0.00034794,14]
[334398548,1723029090268,-872.47,0.00034794,14]
[334398549,1723029090279,-500.0,0.00034794,14]
[334398550,1723029090290,-500.0,0.00034794,14]
[334398551,1723029090299,-2850.24,0.00034794,14]
[334398552,1723029090310,-2368.38,0.00034794,14]
[334398553,1723029090320,-918.69,0.00034794,14]
[334398554,1723029090329,-1182.98,0.00034794,14]
[334398555,1723029090341,-500.0,0.00034794,14]
[334398556,1723029090355,-787.24,0.00034794,14]
[334398557,1723029090365,-500.0,0.00034794,14]
[334398558,1723029090375,-500.0,0.00034794,14]
[334398559,1723029090384,-500.0,0.00034794,14]
[334398560,1723029090393,-748.79,0.00034794,14]
[334398561,1723029090403,-1732.44,0.00034794,14]
[334398562,1723029090413,-1373.61,0.00034794,14]
[334398563,1723029090422,-500.0,0.00034794,14]
[334398564,1723029090433,-1008.03,0.00034794,14]
[334398565,1723029090444,-705.51,0.00034794,14]
[334398566,1723029090455,-500.0,0.00034794,14]
[334398567,1723029090467,-5624.94,0.00034794,14]
[334398568,1723029090478,-4673.31,0.00034794,14]
[334398569,1723029090487,-2102.82,0.00034794,14]
[334398570,1723029090497,-683.38,0.00034794,14]
[334398571,1723029090506,-500.0,0.00034794,14]
[334398572,1723029090516,-500.0,0.00034794,14]
[334398573,1723029090526,-500.0,0.00034794,14]
[334398574,1723029090536,-500.0,0.00034794,14]
[334398575,1723029090547,-1201.25,0.00034794,14]
[334398576,1723029090557,-5296.6,0.00034794,14]
[334398577,1723029090566,-500.0,0.00034794,14]
[334398578,1723029090578,-500.0,0.00034794,14]
[334398579,1723029090588,-754.45,0.00034794,14]
[334398580,1723029090599,-6120.77,0.00034794,14]
[334398581,1723029090610,-4115.44,0.00034794,14]
[334398582,1723029090619,-500.0,0.00034794,14]